[Event "RUS-ch Rapid 2021"]
[Site "Sochi"]
[Date "2021.10.12"]
[Round "1.24"]
[White "Erastov, Semen"]
[Black "Pridorozhni, Aleksei"]
[Result "0-1"]
[ECO "E18"]
[WhiteElo "2039"]
[BlackElo "2564"]
[Annotator "ChessBase"]
[PlyCount "120"]
[EventDate "2021.10.12"]
[EventType "swiss"]
[EventCountry "RUS"]
[SourceTitle "playchess.com"]
[Source "ChessBase"]
[SourceQuality "1"]
[TimeControl "900+10"]

1. d4 {[%emt 0:00:00]} e6 {[%emt 0:00:03]} 2. Nf3 {[%emt 0:00:07]} f5 {[%emt 0:
00:05]} 3. g3 {[%emt 0:00:00]} b6 {[%emt 0:00:02]} 4. Bg2 {[%emt 0:00:00]} Bb7
{[%emt 0:00:00]} 5. O-O {[%emt 0:00:00]} Nf6 {[%emt 0:00:02]} 6. c4 {[%emt 0:
00:10]} Be7 {[%emt 0:00:05]} 7. Nc3 {[%emt 0:00:00]} Ne4 {[%emt 0:00:00]} 8.
Nxe4 {[%emt 0:00:37]} Bxe4 {[%emt 0:00:02]} 9. b3 {[%emt 0:00:30]} O-O {
[%emt 0:00:10]} 10. Bb2 {[%emt 0:00:01]} d6 {[%emt 0:00:16]} 11. Nd2 {[%emt 0:
00:31]} Bxg2 {[%emt 0:00:04]} 12. Kxg2 {[%emt 0:00:10]} Nd7 {[%emt 0:00:06]}
13. e4 {[%emt 0:00:29]} f4 {[%emt 0:00:09]} 14. Qe2 {[%emt 0:00:30]} Qe8 {
[%emt 0:00:12]} 15. f3 {[%emt 0:01:41]} e5 {[%emt 0:00:14]} 16. d5 {[%emt 0:00:
48]} fxg3 {[%emt 0:00:10]} 17. hxg3 {[%emt 0:00:00]} Qg6 {[%emt 0:00:00]} 18.
Rg1 {[%emt 0:02:19]} Bg5 {[%emt 0:00:16]} 19. Nf1 {[%emt 0:02:23]} Rf7 {
[%emt 0:00:05]} 20. Bc1 {[%emt 0:00:00]} Raf8 {[%emt 0:00:04]} 21. Bxg5 {
[%emt 0:00:58]} Qxg5 {[%emt 0:00:02]} 22. Nd2 {[%emt 0:00:05]} Nf6 {[%emt 0:00:
05]} 23. Raf1 {[%emt 0:00:10]} Nh5 {[%emt 0:00:00]} 24. Kf2 {[%emt 0:00:17]}
Rf6 {[%emt 0:00:07]} 25. Qe3 {[%emt 0:01:21]} Qg4 {[%emt 0:00:42]} 26. Ke1 {
[%emt 0:00:39]} Qd7 {[%emt 0:00:19]} 27. Rg2 {[%emt 0:00:51]} Rg6 {[%emt 0:00:
09]} 28. Qf2 {[%emt 0:00:22]} Qe7 {[%emt 0:00:50]} 29. Rfg1 {[%emt 0:01:02]}
Qg5 {[%emt 0:00:03]} 30. Kd1 {[%emt 0:00:07]} Rgf6 {[%emt 0:00:57]} 31. Kc2 {
[%emt 0:00:28]} Qg6 {[%emt 0:00:17]} 32. Kd1 {[%emt 0:00:28]} Qe8 {[%emt 0:00:
05]} 33. a4 {[%emt 0:00:22]} c6 {[%emt 0:00:03]} 34. dxc6 {[%emt 0:00:26]} Qxc6
{[%emt 0:00:04]} 35. Rh1 {[%emt 0:00:20]} g6 {[%emt 0:00:00]} 36. Rgh2 {
[%emt 0:00:11]} R6f7 {[%emt 0:00:10]} 37. Kc2 {[%emt 0:00:50]} a6 {[%emt 0:00:
00]} 38. Qe3 {[%emt 0:00:38]} b5 {[%emt 0:00:17]} 39. axb5 {[%emt 0:00:00]}
axb5 {[%emt 0:00:00]} 40. Rxh5 {[%emt 0:01:01]} gxh5 {[%emt 0:00:01]} 41. Rxh5
{[%emt 0:00:39]} bxc4 {[%emt 0:00:03]} 42. Nxc4 {[%emt 0:00:29]} Qc7 {[%emt 0:
01:18]} 43. Rg5+ {[%emt 0:00:00]} Kh8 {[%emt 0:00:01]} 44. f4 {[%emt 0:00:11]}
Rg7 {[%emt 0:01:45]} 45. fxe5 {[%emt 0:00:04]} dxe5 {[%emt 0:00:05]} 46. Kb2 {
[%emt 0:00:23]} Qe7 {[%emt 0:00:34]} 47. Rxg7 {[%emt 0:00:10]} Qxg7 {[%emt 0:
00:00]} 48. Qc5 {[%emt 0:00:05]} Re8 {[%emt 0:00:07]} 49. Qc6 {[%emt 0:00:10]}
Rg8 {[%emt 0:00:21]} 50. Qe6 {[%emt 0:00:06]} Qxg3 {[%emt 0:00:22]} 51. Nxe5 {
[%emt 0:00:11]} Qf2+ {[%emt 0:00:00]} 52. Kc3 {[%emt 0:00:14]} Qc5+ {[%emt 0:
00:18]} 53. Nc4 {[%emt 0:00:16]} Rf8 {[%emt 0:00:00]} 54. Qg4 {[%emt 0:00:07]}
Qe7 {[%emt 0:00:14]} 55. e5 {[%emt 0:00:06]} Qg7 {[%emt 0:00:02]} 56. Qe4 {
[%emt 0:00:06]} h5 {[%emt 0:00:19]} 57. Kb4 {[%emt 0:00:19]} Rb8+ {[%emt 0:00:
10]} 58. Kc3 {[%emt 0:00:00]} Qg3+ {[%emt 0:00:16]} 59. Ne3 {[%emt 0:00:11]}
Qe1+ {[%emt 0:00:04]} 60. Kc4 {[%emt 0:00:10]} Rb4+ {[%emt 0:00:03]} 0-1

[Event "RUS-ch Rapid 2021"]
[Site "Sochi"]
[Date "2021.10.12"]
[Round "2.12"]
[White "Bologan, Victor"]
[Black "Zakaryan, David"]
[Result "1/2-1/2"]
[ECO "B30"]
[WhiteElo "2574"]
[BlackElo "2283"]
[Annotator "ChessBase"]
[PlyCount "81"]
[EventDate "2021.10.12"]
[EventType "swiss"]
[EventCountry "RUS"]
[SourceTitle "playchess.com"]
[Source "ChessBase"]
[SourceQuality "1"]
[TimeControl "900+10"]

1. e4 {[%emt 0:00:00]} c5 {[%emt 0:00:04]} 2. Nf3 {[%emt 0:00:11]} e6 {[%emt 0:
00:03]} 3. d3 {[%emt 0:00:00]} Nc6 {[%emt 0:00:00]} 4. g3 {[%emt 0:00:00]} Nf6
{[%emt 0:00:07]} 5. Bg2 {[%emt 0:00:00]} Be7 {[%emt 0:00:00]} 6. O-O {[%emt 0:
00:01]} d6 {[%emt 0:00:10]} 7. Qe2 {[%emt 0:00:14]} Qc7 {[%emt 0:00:00]} 8. c3
{[%emt 0:00:05]} Bd7 {[%emt 0:00:08]} 9. d4 {[%emt 0:00:06]} d5 {[%emt 0:00:08]
} 10. exd5 {[%emt 0:00:22]} Nxd5 {[%emt 0:00:00]} 11. c4 {[%emt 0:00:06]} Nf6 {
[%emt 0:00:13]} 12. Bf4 {[%emt 0:00:46]} Qb6 {[%emt 0:00:14]} 13. dxc5 {
[%emt 0:00:44]} Qxc5 {[%emt 0:00:05]} 14. a3 {[%emt 0:00:29]} O-O {[%emt 0:00:
27]} 15. b4 {[%emt 0:00:01]} Qh5 {[%emt 0:00:46]} 16. Nc3 {[%emt 0:00:16]} Rac8
{[%emt 0:01:11]} 17. c5 {[%emt 0:01:03]} Rfd8 {[%emt 0:02:02]} 18. h3 {[%emt 0:
00:41]} h6 {[%emt 0:00:07]} 19. Rac1 {[%emt 0:01:48]} Be8 {[%emt 0:00:31]} 20.
Rfd1 {[%emt 0:01:51]} Qf5 {[%emt 0:01:59]} 21. Nh4 {[%emt 0:03:59]} Qh7 {
[%emt 0:00:03]} 22. Be3 {[%emt 0:00:09]} a6 {[%emt 0:01:23]} 23. f4 {[%emt 0:
00:14]} Nd5 {[%emt 0:01:41]} 24. Nxd5 {[%emt 0:00:47]} exd5 {[%emt 0:00:01]}
25. Rxd5 {[%emt 0:00:07]} Bxh4 {[%emt 0:00:29]} 26. gxh4 {[%emt 0:00:00]} Rxd5
{[%emt 0:00:55]} 27. Bxd5 {[%emt 0:00:00]} Bd7 {[%emt 0:00:52]} 28. Kh2 {
[%emt 0:01:22]} Qf5 {[%emt 0:01:34]} 29. Qg2 {[%emt 0:00:25]} Re8 {[%emt 0:00:
15]} 30. Rc3 {[%emt 0:02:04]} Qf6 {[%emt 0:00:57]} 31. Rd3 {[%emt 0:01:19]} Bf5
{[%emt 0:00:54]} 32. Bxc6 {[%emt 0:00:08]} Qxc6 {[%emt 0:00:48]} 33. Qxc6 {
[%emt 0:00:00]} bxc6 {[%emt 0:00:02]} 34. Rc3 {[%emt 0:00:00]} Rd8 {[%emt 0:00:
02]} 35. Kg3 {[%emt 0:00:22]} Rd3 {[%emt 0:00:00]} 36. Rxd3 {[%emt 0:00:03]}
Bxd3 {[%emt 0:00:10]} 37. Kg4 {[%emt 0:00:07]} f6 {[%emt 0:00:00]} 38. f5 {
[%emt 0:00:24]} Kf7 {[%emt 0:00:00]} 39. Kf4 {[%emt 0:00:00]} Bc2 {[%emt 0:00:
00]} 40. Bd4 {[%emt 0:00:07]} Bb3 {[%emt 0:00:03]} 41. Bc3 {[%emt 0:00:05]}
1/2-1/2

[Event "RUS-ch Rapid 2021"]
[Site "Sochi"]
[Date "2021.10.12"]
[Round "2.15"]
[White "Maltsevskaya, Aleksandra"]
[Black "Kokarev, Dmitry"]
[Result "0-1"]
[ECO "B91"]
[WhiteElo "2411"]
[BlackElo "2579"]
[Annotator "ChessBase"]
[PlyCount "92"]
[EventDate "2021.10.12"]
[EventType "swiss"]
[EventCountry "RUS"]
[SourceTitle "playchess.com"]
[Source "ChessBase"]
[SourceQuality "1"]
[TimeControl "900+10"]

1. e4 {[%emt 0:00:04]} c5 {[%emt 0:00:10]} 2. Nf3 {[%emt 0:00:05]} d6 {[%emt 0:
00:02]} 3. d4 {[%emt 0:00:02]} Nf6 {[%emt 0:00:02]} 4. Nc3 {[%emt 0:00:11]}
cxd4 {[%emt 0:00:02]} 5. Nxd4 {[%emt 0:00:01]} a6 {[%emt 0:00:02]} 6. h3 {
[%emt 0:00:07]} e5 {[%emt 0:00:06]} 7. Nde2 {[%emt 0:00:00]} b5 {[%emt 0:00:02]
} 8. g3 {[%emt 0:00:08]} Nbd7 {[%emt 0:00:10]} 9. Bg2 {[%emt 0:00:27]} Be7 {
[%emt 0:00:00]} 10. O-O {[%emt 0:00:06]} O-O {[%emt 0:00:09]} 11. a4 {[%emt 0:
01:19]} b4 {[%emt 0:00:05]} 12. Nd5 {[%emt 0:00:02]} Nxd5 {[%emt 0:00:15]} 13.
Qxd5 {[%emt 0:00:18]} Qc7 {[%emt 0:00:09]} 14. a5 {[%emt 0:03:04]} Rb8 {
[%emt 0:00:19]} 15. c3 {[%emt 0:00:28]} Nc5 {[%emt 0:00:27]} 16. cxb4 {[%emt 0:
04:16]} Rxb4 {[%emt 0:00:06]} 17. Nc3 {[%emt 0:01:13]} Rd4 {[%emt 0:00:10]} 18.
Qa2 {[%emt 0:00:00]} Be6 {[%emt 0:00:02]} 19. Nd5 {[%emt 0:00:44]} Bxd5 {
[%emt 0:00:15]} 20. exd5 {[%emt 0:00:01]} Ra4 {[%emt 0:01:00]} 21. Qb1 {
[%emt 0:00:19]} Rxa1 {[%emt 0:00:01]} 22. Qxa1 {[%emt 0:00:00]} Nb3 {[%emt 0:
00:03]} 23. Qb1 {[%emt 0:00:01]} Qxa5 {[%emt 0:00:17]} 24. Be3 {[%emt 0:00:09]}
Rc8 {[%emt 0:00:46]} 25. Qf5 {[%emt 0:00:11]} Qc7 {[%emt 0:00:08]} 26. f4 {
[%emt 0:01:34]} Nd4 {[%emt 0:02:52]} 27. Qd3 {[%emt 0:01:01]} Qb6 {[%emt 0:00:
07]} 28. fxe5 {[%emt 0:00:27]} dxe5 {[%emt 0:00:04]} 29. Kh2 {[%emt 0:00:56]}
g6 {[%emt 0:00:10]} 30. Rf2 {[%emt 0:01:37]} a5 {[%emt 0:00:38]} 31. Qe4 {
[%emt 0:00:10]} Bd6 {[%emt 0:01:10]} 32. Qg4 {[%emt 0:01:01]} Qc7 {[%emt 0:00:
33]} 33. Be4 {[%emt 0:00:26]} Rb8 {[%emt 0:00:33]} 34. h4 {[%emt 0:00:03]} f5 {
[%emt 0:01:37]} 35. Bxf5 {[%emt 0:00:00]} Nxf5 {[%emt 0:00:02]} 36. Rxf5 {
[%emt 0:00:01]} Qc8 {[%emt 0:00:06]} 37. Rg5 {[%emt 0:00:25]} Qxg4 {[%emt 0:00:
17]} 38. Rxg4 {[%emt 0:00:00]} Rxb2+ {[%emt 0:00:00]} 39. Kh3 {[%emt 0:00:03]}
Rb4 {[%emt 0:00:10]} 40. Bd2 {[%emt 0:00:38]} Rxg4 {[%emt 0:00:06]} 41. Kxg4 {
[%emt 0:00:00]} a4 {[%emt 0:00:04]} 42. Bc3 {[%emt 0:00:09]} e4 {[%emt 0:00:05]
} 43. h5 {[%emt 0:00:09]} a3 {[%emt 0:00:31]} 44. hxg6 {[%emt 0:00:00]} hxg6 {
[%emt 0:00:03]} 45. Kh3 {[%emt 0:00:25]} Kf7 {[%emt 0:00:07]} 46. Kg2 {[%emt 0:
00:05]} Be7 {[%emt 0:00:06]} 0-1

[Event "RUS-ch Rapid 2021"]
[Site "Sochi"]
[Date "2021.10.12"]
[Round "2.16"]
[White "Afanasiev, Nikita"]
[Black "Gitelson, Arkady"]
[Result "1-0"]
[ECO "A04"]
[WhiteElo "2560"]
[BlackElo "2188"]
[Annotator "ChessBase"]
[PlyCount "66"]
[EventDate "2021.10.12"]
[EventType "swiss"]
[EventCountry "RUS"]
[SourceTitle "playchess.com"]
[Source "ChessBase"]
[SourceQuality "1"]
[TimeControl "900+10"]

1. Nf3 {[%emt 0:00:15]} b6 {[%emt 0:00:04]} 2. g3 {[%emt 0:00:10]} Bb7 {
[%emt 0:00:00]} 3. Bg2 {[%emt 0:00:02]} g6 {[%emt 0:00:01]} 4. O-O {[%emt 0:00:
03]} Bg7 {[%emt 0:00:01]} 5. d4 {[%emt 0:00:00]} e6 {[%emt 0:00:06]} 6. Re1 {
[%emt 0:00:05]} Ne7 {[%emt 0:00:00]} 7. e4 {[%emt 0:00:00]} O-O {[%emt 0:00:02]
} 8. a4 {[%emt 0:00:08]} a6 {[%emt 0:00:00]} 9. c3 {[%emt 0:00:03]} d6 {
[%emt 0:00:04]} 10. h4 {[%emt 0:00:23]} h6 {[%emt 0:00:03]} 11. Nbd2 {[%emt 0:
00:08]} c5 {[%emt 0:00:39]} 12. dxc5 {[%emt 0:00:30]} dxc5 {[%emt 0:00:15]} 13.
Nc4 {[%emt 0:00:12]} Nd7 {[%emt 0:02:06]} 14. Bf4 {[%emt 0:01:05]} Bc6 {
[%emt 0:03:07]} 15. Bd6 {[%emt 0:00:31]} b5 {[%emt 0:01:44]} 16. Nce5 {[%emt 0:
00:11]} Nxe5 {[%emt 0:01:12]} 17. Nxe5 {[%emt 0:00:05]} Bxe5 {[%emt 0:00:00]}
18. Bxe5 {[%emt 0:00:00]} Qxd1 {[%emt 0:00:06]} 19. Rexd1 {[%emt 0:00:15]} c4 {
[%emt 0:00:43]} 20. Bf6 {[%emt 0:00:48]} Nc8 {[%emt 0:01:55]} 21. axb5 {
[%emt 0:02:54]} axb5 {[%emt 0:00:00]} 22. Rxa8 {[%emt 0:00:02]} Bxa8 {[%emt 0:
00:00]} 23. Ra1 {[%emt 0:00:14]} Nb6 {[%emt 0:01:49]} 24. Ra5 {[%emt 0:02:13]}
Nd7 {[%emt 0:00:09]} 25. Be7 {[%emt 0:00:07]} Re8 {[%emt 0:00:45]} 26. Bd6 {
[%emt 0:00:00]} e5 {[%emt 0:03:45]} 27. Rxb5 {[%emt 0:00:00]} Re6 {[%emt 0:00:
04]} 28. Ba3 {[%emt 0:00:30]} Re8 {[%emt 0:00:37]} 29. Rb4 {[%emt 0:00:19]} Nc5
{[%emt 0:00:30]} 30. Rxc4 {[%emt 0:00:05]} Nd3 {[%emt 0:00:00]} 31. Bf1 {
[%emt 0:00:28]} Ne1 {[%emt 0:00:03]} 32. Be2 {[%emt 0:00:04]} f5 {[%emt 0:00:
23]} 33. Kf1 {[%emt 0:00:02]} Nc2 {[%emt 0:00:04]} 1-0

[Event "RUS-ch Rapid 2021"]
[Site "Sochi"]
[Date "2021.10.12"]
[Round "2.18"]
[White "Khanin, Semen"]
[Black "Taysayev, Timur"]
[Result "1-0"]
[ECO "B63"]
[WhiteElo "2521"]
[BlackElo "2217"]
[Annotator "ChessBase"]
[PlyCount "63"]
[EventDate "2021.10.12"]
[EventType "swiss"]
[EventCountry "RUS"]
[SourceTitle "playchess.com"]
[Source "ChessBase"]
[SourceQuality "1"]
[TimeControl "900+10"]

1. e4 {[%emt 0:00:00]} c5 {[%emt 0:00:08]} 2. Nf3 {[%emt 0:00:02]} d6 {[%emt 0:
00:02]} 3. d4 {[%emt 0:00:03]} cxd4 {[%emt 0:00:00]} 4. Nxd4 {[%emt 0:00:05]}
Nf6 {[%emt 0:00:08]} 5. Nc3 {[%emt 0:00:03]} Nc6 {[%emt 0:00:02]} 6. Bg5 {
[%emt 0:00:01]} e6 {[%emt 0:00:06]} 7. Qd2 {[%emt 0:00:07]} Be7 {[%emt 0:00:37]
} 8. O-O-O {[%emt 0:00:01]} O-O {[%emt 0:00:05]} 9. f3 {[%emt 0:00:20]} a6 {
[%emt 0:00:54]} 10. h4 {[%emt 0:00:11]} Nxd4 {[%emt 0:00:15]} 11. Qxd4 {
[%emt 0:00:03]} Qa5 {[%emt 0:00:11]} 12. Kb1 {[%emt 0:00:10]} b5 {[%emt 0:00:
08]} 13. e5 {[%emt 0:00:35]} dxe5 {[%emt 0:01:21]} 14. Qxe5 {[%emt 0:00:01]}
Bb7 {[%emt 0:02:27]} 15. Bd3 {[%emt 0:00:11]} Rac8 {[%emt 0:00:20]} 16. Ne4 {
[%emt 0:03:02]} Bxe4 {[%emt 0:00:52]} 17. Bxe4 {[%emt 0:00:09]} Nxe4 {[%emt 0:
00:54]} 18. Qxe4 {[%emt 0:00:51]} Qc7 {[%emt 0:01:55]} 19. Bxe7 {[%emt 0:03:30]
} Qxe7 {[%emt 0:00:06]} 20. Rd4 {[%emt 0:00:14]} Rfd8 {[%emt 0:00:24]} 21. Rhd1
{[%emt 0:00:03]} h6 {[%emt 0:00:31]} 22. a3 {[%emt 0:00:37]} Qc7 {[%emt 0:00:
29]} 23. Rxd8+ {[%emt 0:00:33]} Rxd8 {[%emt 0:00:00]} 24. Rxd8+ {[%emt 0:00:12]
} Qxd8 {[%emt 0:00:00]} 25. Qc6 {[%emt 0:00:03]} Qxh4 {[%emt 0:02:42]} 26. Qxa6
{[%emt 0:00:45]} Qh1+ {[%emt 0:00:20]} 27. Ka2 {[%emt 0:00:00]} Qxg2 {[%emt 0:
00:00]} 28. Qxb5 {[%emt 0:00:06]} Qxf3 {[%emt 0:00:09]} 29. a4 {[%emt 0:00:03]}
h5 {[%emt 0:00:00]} 30. a5 {[%emt 0:00:03]} h4 {[%emt 0:00:14]} 31. a6 {
[%emt 0:00:08]} h3 {[%emt 0:00:35]} 32. a7 {[%emt 0:01:41]} 1-0

[Event "RUS-ch Rapid 2021"]
[Site "Sochi"]
[Date "2021.10.12"]
[Round "2.20"]
[White "Nozdrachev, Vladislav"]
[Black "Khubukshanov, Erdem"]
[Result "0-1"]
[ECO "B31"]
[WhiteElo "2495"]
[BlackElo "2373"]
[Annotator "ChessBase"]
[PlyCount "48"]
[EventDate "2021.10.12"]
[EventType "swiss"]
[EventCountry "RUS"]
[SourceTitle "playchess.com"]
[Source "ChessBase"]
[SourceQuality "1"]
[TimeControl "900+10"]

1. e4 {[%emt 0:00:00]} c5 {[%emt 0:00:04]} 2. Nf3 {[%emt 0:00:06]} Nc6 {
[%emt 0:00:00]} 3. Bb5 {[%emt 0:00:03]} g6 {[%emt 0:00:08]} 4. O-O {[%emt 0:00:
00]} Bg7 {[%emt 0:00:03]} 5. Re1 {[%emt 0:00:10]} e5 {[%emt 0:00:02]} 6. Bxc6 {
[%emt 0:00:02]} dxc6 {[%emt 0:00:02]} 7. d3 {[%emt 0:00:02]} Qc7 {[%emt 0:01:
00]} 8. a4 {[%emt 0:00:02]} a5 {[%emt 0:00:14]} 9. Nbd2 {[%emt 0:00:19]} Ne7 {
[%emt 0:00:01]} 10. Nc4 {[%emt 0:00:00]} Be6 {[%emt 0:00:00]} 11. b3 {[%emt 0:
00:20]} f6 {[%emt 0:00:49]} 12. Be3 {[%emt 0:00:17]} b6 {[%emt 0:00:00]} 13.
Nfd2 {[%emt 0:00:11]} O-O {[%emt 0:03:53]} 14. b4 {[%emt 0:00:48]} b5 {[%emt 0:
00:48]} 15. axb5 {[%emt 0:01:56]} cxb5 {[%emt 0:00:03]} 16. Nxa5 {[%emt 0:00:
00]} cxb4 {[%emt 0:00:02]} 17. Nab3 {[%emt 0:00:09]} Rxa1 {[%emt 0:00:21]} 18.
Qxa1 {[%emt 0:00:00]} Qxc2 {[%emt 0:00:30]} 19. Nc5 {[%emt 0:02:05]} Bf7 {
[%emt 0:01:03]} 20. Qa5 {[%emt 0:04:56]} f5 {[%emt 0:00:00]} 21. Nf3 {[%emt 0:
00:54]} b3 {[%emt 0:06:16]} 22. Qxb5 {[%emt 0:00:23]} b2 {[%emt 0:00:05]} 23.
g3 {[%emt 0:03:15]} Ba2 {[%emt 0:00:30]} 24. Nd2 {[%emt 0:00:07]} f4 {[%emt 0:
00:03]} 0-1

[Event "RUS-ch Rapid 2021"]
[Site "Sochi"]
[Date "2021.10.12"]
[Round "2.21"]
[White "Dashko, Andrey"]
[Black "Trushnikov, Sergey"]
[Result "1/2-1/2"]
[ECO "B06"]
[WhiteElo "2219"]
[BlackElo "2525"]
[Annotator "ChessBase"]
[PlyCount "75"]
[EventDate "2021.10.12"]
[EventType "swiss"]
[EventCountry "RUS"]
[SourceTitle "playchess.com"]
[Source "ChessBase"]
[SourceQuality "1"]
[TimeControl "900+10"]

1. e4 {[%emt 0:00:05]} g6 {[%emt 0:00:07]} 2. d4 {[%emt 0:00:00]} Bg7 {[%emt 0:
00:02]} 3. Nc3 {[%emt 0:00:00]} d6 {[%emt 0:00:00]} 4. Be3 {[%emt 0:00:05]} a6
{[%emt 0:00:00]} 5. Qd2 {[%emt 0:00:04]} b5 {[%emt 0:00:00]} 6. f3 {[%emt 0:00:
00]} Bb7 {[%emt 0:00:13]} 7. O-O-O {[%emt 0:00:05]} Nd7 {[%emt 0:00:00]} 8. Kb1
{[%emt 0:00:07]} Rc8 {[%emt 0:01:59]} 9. h4 {[%emt 0:00:08]} h5 {[%emt 0:00:00]
} 10. Nh3 {[%emt 0:01:36]} c5 {[%emt 0:00:09]} 11. dxc5 {[%emt 0:01:09]} Nxc5 {
[%emt 0:00:05]} 12. Bd4 {[%emt 0:00:06]} Bxd4 {[%emt 0:01:59]} 13. Qxd4 {
[%emt 0:00:00]} Nf6 {[%emt 0:00:02]} 14. Nd5 {[%emt 0:00:58]} Bxd5 {[%emt 0:00:
42]} 15. exd5 {[%emt 0:00:00]} Ncd7 {[%emt 0:00:23]} 16. Nf4 {[%emt 0:01:41]}
Qb6 {[%emt 0:01:07]} 17. Qd2 {[%emt 0:00:44]} Rc5 {[%emt 0:01:14]} 18. Be2 {
[%emt 0:01:24]} Qb7 {[%emt 0:00:35]} 19. g4 {[%emt 0:00:35]} Nb6 {[%emt 0:00:
25]} 20. b4 {[%emt 0:03:52]} Rxd5 {[%emt 0:04:52]} 21. Nxd5 {[%emt 0:00:48]}
Nfxd5 {[%emt 0:00:03]} 22. gxh5 {[%emt 0:00:35]} gxh5 {[%emt 0:00:08]} 23. f4 {
[%emt 0:00:28]} Qc7 {[%emt 0:02:02]} 24. Rh3 {[%emt 0:00:21]} Rg8 {[%emt 0:00:
25]} 25. Bxh5 {[%emt 0:00:51]} e6 {[%emt 0:00:17]} 26. f5 {[%emt 0:02:22]} e5 {
[%emt 0:00:36]} 27. Bf3 {[%emt 0:00:23]} Nc3+ {[%emt 0:00:29]} 28. Kc1 {
[%emt 0:00:07]} Nxa2+ {[%emt 0:00:11]} 29. Kb1 {[%emt 0:00:03]} Nc3+ {[%emt 0:
00:10]} 30. Kc1 {[%emt 0:00:02]} Nxd1 {[%emt 0:00:07]} 31. Bxd1 {[%emt 0:00:00]
} a5 {[%emt 0:00:27]} 32. Rc3 {[%emt 0:00:08]} Nc4 {[%emt 0:00:08]} 33. Qd5 {
[%emt 0:00:00]} Qb6 {[%emt 0:00:31]} 34. Qa8+ {[%emt 0:00:03]} Qd8 {[%emt 0:00:
02]} 35. Qc6+ {[%emt 0:00:06]} Qd7 {[%emt 0:00:21]} 36. Qa8+ {[%emt 0:00:00]}
Qd8 {[%emt 0:00:02]} 37. Qc6+ {[%emt 0:00:04]} Qd7 {[%emt 0:00:32]} 38. Qa8+ {
[%emt 0:00:00]} 1/2-1/2

[Event "RUS-ch Rapid 2021"]
[Site "Sochi"]
[Date "2021.10.12"]
[Round "3.10"]
[White "Tsydypov, Zhamsaran"]
[Black "Pershin, Denis"]
[Result "1-0"]
[ECO "B11"]
[WhiteElo "2526"]
[BlackElo "2388"]
[Annotator "ChessBase"]
[PlyCount "71"]
[EventDate "2021.10.12"]
[EventType "swiss"]
[EventCountry "RUS"]
[SourceTitle "playchess.com"]
[Source "ChessBase"]
[SourceQuality "1"]
[TimeControl "900+10"]

1. e4 {[%emt 0:02:40]} c6 {[%emt 0:00:00]} 2. Nc3 {[%emt 0:00:05]} d5 {[%emt 0:
00:07]} 3. Nf3 {[%emt 0:00:01]} Bg4 {[%emt 0:00:02]} 4. h3 {[%emt 0:00:02]}
Bxf3 {[%emt 0:00:02]} 5. Qxf3 {[%emt 0:00:08]} Nf6 {[%emt 0:00:06]} 6. d4 {
[%emt 0:02:16]} dxe4 {[%emt 0:00:06]} 7. Qe3 {[%emt 0:00:00]} e6 {[%emt 0:00:
23]} 8. Nxe4 {[%emt 0:00:05]} Nxe4 {[%emt 0:00:00]} 9. Qxe4 {[%emt 0:00:07]}
Nd7 {[%emt 0:00:11]} 10. Be2 {[%emt 0:00:50]} Nf6 {[%emt 0:00:00]} 11. Qd3 {
[%emt 0:00:00]} Bd6 {[%emt 0:00:00]} 12. O-O {[%emt 0:00:00]} O-O {[%emt 0:00:
03]} 13. Bg5 {[%emt 0:00:59]} h6 {[%emt 0:00:00]} 14. Bh4 {[%emt 0:00:02]} e5 {
[%emt 0:05:30]} 15. Rad1 {[%emt 0:00:22]} Re8 {[%emt 0:00:07]} 16. Qb3 {
[%emt 0:06:01]} exd4 {[%emt 0:04:11]} 17. Bc4 {[%emt 0:00:15]} Qe7 {[%emt 0:00:
33]} 18. Rxd4 {[%emt 0:00:09]} Bc5 {[%emt 0:00:38]} 19. Bxf6 {[%emt 0:01:59]}
Qxf6 {[%emt 0:00:48]} 20. Rd7 {[%emt 0:00:00]} Re7 {[%emt 0:02:14]} 21. Rxb7 {
[%emt 0:00:03]} Rxb7 {[%emt 0:01:46]} 22. Qxb7 {[%emt 0:00:00]} Rd8 {[%emt 0:
00:00]} 23. Bd3 {[%emt 0:00:01]} Bb6 {[%emt 0:00:55]} 24. b4 {[%emt 0:01:48]}
g6 {[%emt 0:00:03]} 25. a4 {[%emt 0:00:09]} Rd5 {[%emt 0:01:23]} 26. a5 {
[%emt 0:00:14]} Bd4 {[%emt 0:00:02]} 27. b5 {[%emt 0:00:32]} Rc5 {[%emt 0:00:
14]} 28. Qxa7 {[%emt 0:00:13]} cxb5 {[%emt 0:00:02]} 29. a6 {[%emt 0:00:03]}
Kg7 {[%emt 0:00:23]} 30. Qb7 {[%emt 0:00:10]} Qd8 {[%emt 0:00:11]} 31. a7 {
[%emt 0:00:04]} Rc8 {[%emt 0:00:03]} 32. Be4 {[%emt 0:00:00]} Bxa7 {[%emt 0:00:
08]} 33. Qxa7 {[%emt 0:00:02]} Rc7 {[%emt 0:00:11]} 34. Qb6 {[%emt 0:00:18]}
Qd7 {[%emt 0:00:07]} 35. Bd3 {[%emt 0:00:01]} Rc8 {[%emt 0:00:03]} 36. Ra1 {
[%emt 0:00:03]} 1-0